bitfinex-derivatives/quotes_ETHF0:USTF0_20240830
["timestamp","ask_amount","ask_price","bid_price","bid_amount"]
[1725032076399,4.1879,2450.1,2449.5,0.40826]
[1725032076604,4.1879,2450.1,2449.4,3.61607]
[1725032076605,4.8381041,2449.8,2449.4,3.61607]
[1725032076800,0.40823,2449.7,2449.4,3.61607]
[1725032077006,0.40826,2449.5,2449.4,3.2078]
[1725032077302,4.49066,2449.5,2449.4,3.2078]
[1725032077512,4.0824,2449.5,2449.4,3.2078]
[1725032078313,4.49066,2449.5,2449.4,3.2078]
[1725032078512,0.4083,2449.3,2448.9,3.2078]
[1725032078704,4.44771166,2449.5,2448.9,3.2078]
[1725032078905,3.61602,2449.8,2449.2,3.2078]
[1725032079109,0.40823,2449.7,2449.2,3.2078]
[1725032079304,4.26743547,2449.7,2449.2,3.2078]
[1725032079504,3.2078,2449.8,2449.5,0.40825]
[1725032079706,3.61601,2449.8,2449.5,0.40825]
[1725032079901,0.41430795,2450.0,2449.2,3.4127679]
[1725032080109,0.00611795,2450.0,2449.9,0.4082]
[1725032080614,0.00611795,2450.0,2449.9,4.4898]
[1725032080912,0.00611795,2450.0,2449.9,0.4082]
[1725032081710,2.2354,2450.7,2449.9,4.4898]
[1725032081911,0.40808,2450.6,2450.3,0.40812]
[1725032082211,4.70886947,2450.5,2450.3,0.40812]
[1725032082514,0.40807,2450.7,2450.3,0.40812]
[1725032082715,0.41418795,2450.7,2450.4,0.40811]
[1725032082911,0.41418795,2450.7,2450.3,0.00611795]
[1725032082912,0.00611795,2450.7,2450.6,0.40808]
[1725032083416,8.51100091,2450.7,2450.3,0.00611795]
[1725032083714,4.43020091,2450.7,2450.3,0.00611795]
[1725032084226,0.00611795,2450.7,2450.5,0.40809]
[1725032084418,0.00611795,2450.7,2450.6,0.40808]
[1725032084907,0.00611795,2450.7,2450.6,4.48888]
[1725032085323,0.40794,2451.5,2451.1,0.40799]
[1725032085530,3.2078,2451.6,2451.3,0.40795]
[1725032085820,2.0698,2451.7,2451.3,0.40795]
[1725032086006,2.4777,2451.7,2451.3,0.40795]
[1725032086211,4.66357583,2451.6,2451.2,0.40797]
[1725032086522,0.41401795,2451.7,2451.0,3.2078]
[1725032086914,0.00611795,2451.7,2451.1,3.2078]
[1725032087215,3.21391795,2451.7,2451.1,3.2078]
[1725032087417,4.44419931,2451.6,2450.6,5.389]
[1725032087616,0.40797,2451.3,2450.6,2.1812]
[1725032087818,3.2078,2451.4,2450.8,3.2078]
[1725032088023,4.71312573,2451.2,2450.8,3.2078]
[1725032088343,4.71312573,2451.3,2450.8,3.2078]
[1725032088518,4.71312573,2451.3,2450.6,3.20139]
[1725032088519,4.52574747,2451.4,2451.1,0.40799]
[1725032088714,4.36704447,2451.6,2451.1,0.40799]
[1725032088911,3.44019127,2451.7,2451.1,0.40799]
[1725032089118,4.45994127,2451.7,2451.0,0.408]
[1725032089322,0.40796,2451.4,2451.0,0.408]
[1725032089620,0.408,2451.1,2450.8,3.2078]
[1725032089823,0.40803,2450.9,2450.6,2.58928]
[1725032090015,0.31288077,2451.0,2450.5,3.2078]
[1725032090215,3.2078,2451.5,2450.5,8.0978]
[1725032090416,0.00611795,2451.7,2451.2,0.40797]
[1725032090722,0.40795,2451.4,2451.0,0.408]
[1725032091020,4.6335651,2451.3,2450.9,0.40802]
[1725032091211,4.6335651,2451.3,2450.7,3.2078]
[1725032091419,6.42213175,2451.5,2450.7,3.2078]
[1725032091721,0.40805,2450.8,2450.7,3.2078]
[1725032091918,1.02,2451.1,2450.7,3.2078]
[1725032092123,0.40805,2450.8,2450.7,3.2078]
[1725032092323,0.40811,2450.4,2450.3,0.00611795]
[1725032092521,3.37513227,2450.8,2450.3,0.00611795]
[1725032092826,0.40807,2450.7,2450.3,0.41423795]
[1725032093025,0.40807,2450.7,2450.4,0.40811]
[1725032093222,0.40807,2450.7,2450.3,0.00611795]
[1725032093223,0.40803,2451.0,2450.5,3.2078]
[1725032093525,4.4027926,2451.2,2450.5,3.2078]
[1725032093721,4.4027926,2451.2,2450.3,0.00611795]
[1725032093722,4.27934952,2450.9,2450.3,0.00611795]
[1725032094027,1.02004,2451.0,2450.5,0.40809]
[1725032094028,0.40805,2450.8,2450.5,0.40809]
[1725032094224,1.02004,2451.0,2450.5,0.40809]
[1725032094428,4.68741952,2450.7,2450.3,3.62202795]
[1725032094621,4.27934952,2450.7,2450.3,3.62202795]
[1725032094929,0.40807,2450.7,2450.3,0.41423795]
[1725032095225,1.0201,2450.9,2450.3,0.00611795]
[1725032095226,3.2078,2450.9,2450.3,0.00611795]
[1725032095527,4.33552434,2450.6,2450.3,0.41423795]
[1725032095843,4.4979599,2451.1,2450.5,0.40808]
[1725032096128,4.4979599,2451.1,2450.5,0.4081]
[1725032096129,4.4979599,2450.6,2450.5,0.4081]
[1725032096323,4.4979599,2450.9,2450.8,0.40805]
[1725032096517,4.9059699,2451.1,2450.5,3.2078]
[1725032096719,1.8268,2451.3,2450.9,0.40802]
[1725032096922,0.40798,2451.2,2450.9,0.40802]
[1725032097126,0.408,2451.1,2450.8,0.40804]
[1725032097322,0.40799,2451.2,2450.9,0.40803]
[1725032097718,5.45590583,2451.4,2450.8,0.40803]
[1725032097719,0.408,2451.1,2450.8,0.40803]
[1725032097919,0.40799,2451.2,2450.6,3.2078]
[1725032098120,0.40799,2451.2,2450.9,0.40802]
[1725032098321,0.408,2451.1,2450.8,0.40804]
[1725032098731,0.408,2451.1,2450.9,0.40803]
[1725032098938,4.84398583,2451.4,2451.1,0.40799]
[1725032099127,0.40795,2451.4,2451.1,0.40799]
[1725032099332,4.96025863,2451.3,2451.0,0.408]
[1725032099627,3.2078,2451.5,2450.9,3.2078]
[1725032099628,0.408,2451.1,2450.9,3.2078]
[1725032100130,0.40801,2451.0,2450.9,3.2078]
[1725032100330,0.40806,2450.7,2450.6,3.2078]
[1725032100632,1.4284,2450.4,2450.3,7.95e-06]
[1725032100832,1.4284,2450.4,2449.2,3.81760384]
[1725032100833,0.40824,2449.7,2449.2,0.4083]
[1725032101031,4.22832,2449.9,2449.3,3.2078]
[1725032101342,4.44710727,2449.6,2449.0,5.29834]
[1725032101628,0.40825,2449.6,2449.0,4.89]
[1725032101819,0.00611795,2449.5,2449.1,0.00611795]
[1725032102023,0.00611795,2449.5,2449.3,3.2078]
[1725032102225,0.00611795,2449.5,2449.3,3.61609]
[1725032102434,0.00611795,2449.5,2449.4,9.58078367]
[1725032102623,0.00611795,2449.5,2449.4,5.29828]
[1725032102827,0.00611795,2449.5,2449.3,3.61609]
[1725032103135,0.00611795,2449.5,2449.4,0.40828]
[1725032103836,0.00611795,2449.5,2449.4,10.49068]
[1725032104021,0.17662078,2450.5,2450.0,0.40817]
[1725032104225,3.2078,2450.9,2450.6,0.40808]
[1725032104627,3.2078,2450.9,2450.2,3.2078]
[1725032104831,0.40799,2451.2,2450.7,0.40805]
[1725032105022,0.40799,2451.2,2450.7,3.2078]
[1725032105224,0.00611795,2451.2,2450.7,3.21391795]
[1725032105425,4.40751,2451.1,2450.7,0.00611795]
[1725032105737,0.00611795,2451.2,2451.1,0.408]
[1725032105941,0.00611795,2451.2,2451.1,6.408]
[1725032106126,0.00611795,2451.2,2451.1,10.488]
[1725032106321,0.00611795,2451.2,2451.1,7.2878]
[1725032106522,0.00611795,2451.2,2451.0,0.60974481]
[1725032106523,0.00611795,2451.2,2450.9,1.9019]
[1725032106726,0.00611795,2451.2,2450.8,0.6097717]
[1725032106927,0.00611795,2451.2,2450.8,0.40803]
[1725032107133,0.00611795,2451.2,2450.7,0.00611795]
[1725032107332,0.00611795,2451.2,2450.7,0.41416795]
[1725032107534,0.00611795,2451.2,2450.9,3.2078]
[1725032107741,0.00611795,2451.2,2451.0,0.40801]
[1725032108030,0.00611795,2451.2,2451.1,4.22551773]
[1725032108230,0.00611795,2451.2,2451.0,10.89]
[1725032108231,0.00611795,2451.2,2450.8,3.2078]
[1725032108433,0.00611795,2451.2,2451.0,3.2078]
[1725032108731,0.00611795,2451.2,2450.7,0.41416795]
[1725032108922,0.00611795,2451.2,2450.7,0.00611795]
[1725032109127,3.2078,2451.1,2450.7,0.00611795]
[1725032109326,0.41410795,2451.2,2450.7,0.00611795]
[1725032109327,0.00611795,2451.2,2450.7,0.41417795]
[1725032109533,0.00611795,2451.2,2450.8,3.81759595]
[1725032109736,0.00611795,2451.2,2450.7,0.00611795]
[1725032109933,4.55529964,2451.1,2450.8,3.2078]
[1725032110727,4.55529964,2451.1,2450.8,3.61584]
[1725032110927,0.00611795,2451.2,2450.8,3.61584]
[1725032111127,0.00611795,2451.2,2450.8,3.2078]
[1725032111437,0.00611795,2451.2,2450.9,0.60978703]
[1725032111638,0.00611795,2451.2,2451.1,0.408]
[1725032111839,0.00611795,2451.2,2451.1,4.22558703]
[1725032112134,0.00611795,2451.2,2451.1,10.22558703]
[1725032112340,0.00611795,2451.2,2451.1,16.19828703]
[1725032112941,0.00611795,2451.2,2451.1,6.58248703]
[1725032113132,0.00611795,2451.2,2451.1,10.19828703]
[1725032113630,0.00611795,2451.2,2451.1,16.19828703]
[1725032113825,0.00611795,2451.2,2451.1,6.58248703]
[1725032114034,0.00611795,2451.2,2450.7,6.69574074]
[1725032114035,0.408,2451.1,2450.7,1.27375473]
[1725032114335,4.47187081,2451.0,2450.7,0.41417795]
[1725032114536,4.47187081,2451.0,2450.7,0.00611795]
[1725032114737,4.87988081,2451.0,2450.7,3.21391795]
[1725032114936,4.47187081,2451.0,2450.7,3.62197795]
[1725032115131,0.00611795,2451.2,2450.9,0.40803]
[1725032115332,0.00611795,2451.2,2450.7,3.21391795]
[1725032115540,0.40802,2451.0,2450.7,3.21391795]
[1725032115732,4.58890041,2451.1,2450.7,3.21391795]
[1725032115931,0.41409795,2451.2,2450.8,0.40804]
[1725032116426,0.00611795,2451.2,2450.7,3.41948434]
[1725032116628,0.00611795,2451.2,2450.9,0.40802]
[1725032117028,0.00611795,2451.2,2450.8,0.60977486]
[1725032117029,0.00611795,2451.2,2451.1,0.408]
[1725032117231,0.00611795,2451.2,2451.1,3.6158]
[1725032117438,0.00611795,2451.2,2451.1,13.6958]
[1725032117840,0.00611795,2451.2,2451.1,3.6158]
[1725032118041,0.00611795,2451.2,2451.1,7.6958]
[1725032118351,0.00611795,2451.2,2451.1,13.6958]
[1725032118735,0.00611795,2451.2,2451.1,4.488]
[1725032120233,0.00611795,2451.2,2451.1,10.488]
[1725032120645,7.95e-06,2451.2,2451.1,15.7358]
[1725032120842,7.95e-06,2451.2,2451.1,16.799772]
[1725032121144,0.40778,2452.4,2452.1,0.40782]
[1725032121344,0.4078,2452.3,2451.9,0.40785]
[1725032121537,4.73861179,2452.4,2452.1,0.40782]
[1725032121733,3.4196,2452.7,2452.0,3.2078]
[1725032121941,3.4196,2452.7,2451.7,4.89]
[1725032121942,0.00611795,2452.6,2452.4,0.40778]
[1725032122241,4.3515273,2452.6,2452.1,0.00611795]
[1725032122445,0.40781,2452.2,2452.1,0.00611795]
[1725032122842,14.86721736,2452.2,2452.1,0.00611795]
[1725032123051,8.86721736,2452.2,2452.1,0.00611795]
[1725032123339,1.6906,2452.3,2452.1,0.00611795]
[1725032123733,1.6906,2452.3,2452.1,0.41393795]
[1725032123937,1.6906,2452.3,2452.1,0.41394795]
[1725032124340,1.6906,2452.3,2452.2,0.40781]
[1725032124744,1.6906,2452.3,2452.1,0.00611795]
[1725032124933,4.0776,2452.2,2452.1,0.00611795]
[1725032125134,6.56776347,2452.3,2452.1,0.00611795]
[1725032125340,0.00611795,2452.6,2452.2,0.4078]
[1725032125638,0.00611795,2452.6,2452.3,0.40778]
[1725032125870,0.00611795,2452.6,2452.1,0.00611795]
[1725032126350,0.41386795,2452.6,2452.1,0.41393795]
[1725032126541,0.00611795,2452.6,2452.2,0.40781]
[1725032126939,0.00611795,2452.6,2452.1,3.21391795]
[1725032127145,0.00611795,2452.6,2452.4,3.2078]
[1725032127744,9.1924151,2452.5,2452.1,0.00611795]
[1725032127936,5.1148151,2452.5,2452.1,0.00611795]
[1725032128251,3.21391795,2452.6,2452.1,0.00611795]
[1725032128545,0.00611795,2452.6,2452.3,0.40779]
[1725032128746,0.00611795,2452.6,2452.4,0.40778]
[1725032128949,0.00611795,2452.6,2452.5,0.40776]
[1725032129142,0.00611795,2452.6,2452.4,0.40777]
[1725032129445,0.00611795,2452.6,2452.1,0.00611795]
[1725032129647,4.29008022,2452.5,2452.1,0.00611795]
[1725032130146,0.00611795,2452.6,2452.2,0.20609914]
[1725032130544,0.00611795,2452.6,2452.5,0.40776]
[1725032131044,0.00611795,2452.6,2452.5,4.48536]
[1725032131249,0.00611795,2452.6,2452.5,0.40776]
[1725032131444,0.00611795,2452.6,2452.2,3.2078]
[1725032131647,0.00611795,2452.6,2452.4,0.40777]
[1725032131837,0.00611795,2452.6,2452.5,0.40776]
[1725032132038,7.95e-06,2452.6,2452.5,16.39477]
[1725032132239,7.95e-06,2452.6,2452.5,19.81377]
[1725032132445,1.7994,2453.7,2453.4,0.4076]
[1725032132643,1.7994,2453.7,2453.4,3.2078]
[1725032132847,1.7994,2453.7,2453.2,4.89]
[1725032133045,1.7994,2453.7,2453.4,0.40761]
[1725032133250,1.7994,2453.7,2453.3,0.40762]
[1725032133546,0.40765,2453.2,2452.7,0.40772]
[1725032133747,0.40765,2453.2,2452.6,3.2078]
[1725032133748,7.79988332,2453.6,2452.6,3.2078]
[1725032134055,0.4076,2453.5,2453.1,0.40766]
[1725032134357,1.80551795,2453.7,2453.3,3.2078]
[1725032134551,1.80551795,2453.7,2453.5,0.40759]
[1725032135054,0.00611795,2453.7,2453.5,0.40759]
[1725032135350,0.00611795,2453.7,2453.6,0.40758]
[1725032135854,0.00611795,2453.7,2453.4,0.00611795]
[1725032135855,0.00611795,2453.7,2453.5,0.4076]
[1725032136042,0.00611795,2453.7,2453.4,0.00611795]
[1725032136246,0.41367795,2453.7,2453.4,0.00611795]
[1725032136560,0.00611795,2453.7,2453.4,3.21391795]
[1725032136754,0.00611795,2453.7,2453.4,3.62152795]
[1725032136960,0.00611795,2453.7,2453.4,0.00611795]
[1725032137253,0.00611795,2453.7,2453.6,0.40758]
[1725032137646,0.00611795,2453.7,2453.6,15.37278]
[1725032137845,0.00611795,2453.7,2453.6,9.37278]
[1725032138048,0.00611795,2453.7,2453.6,4.48278]
[1725032138249,4.08131795,2453.7,2453.4,0.00611795]
[1725032138558,4.08131795,2453.7,2453.4,0.41372795]
[1725032138559,0.00611795,2453.7,2453.4,0.41372795]
[1725032138853,0.00611795,2453.7,2453.4,0.41371795]
[1725032139053,0.00611795,2453.7,2453.5,0.40759]
[1725032139247,0.00611795,2453.7,2453.6,0.40758]
[1725032139645,0.00611795,2453.7,2453.6,7.69058]
[1725032140053,0.00611795,2453.7,2453.6,12.39058]
[1725032140249,0.00611795,2453.7,2453.6,8.31538]
[1725032140653,0.00611795,2453.7,2453.6,18.39058]
[1725032140854,0.00611795,2453.7,2453.6,19.40954]
[1725032141647,0.00611795,2453.7,2453.6,12.39058]
[1725032141858,0.00611795,2453.7,2453.6,8.31538]
[1725032142064,0.00611795,2453.7,2453.6,12.39058]
[1725032142264,0.00611795,2453.7,2453.6,8.31538]
[1725032142962,0.00611795,2453.7,2453.6,5.10758]
[1725032143351,0.00611795,2453.7,2453.6,8.31538]
[1725032145062,0.00611795,2453.7,2453.6,12.39058]
[1725032145254,0.00611795,2453.7,2453.6,19.40954]
[1725032145449,45.7933,2454.8,2453.8,1.01884]
[1725032145650,1.0185,2454.7,2453.9,4.7]
[1725032145861,0.4075,2454.1,2453.9,3.2078]
[1725032146069,3.2078,2454.2,2453.6,7.9078]
[1725032146359,4.77692835,2454.0,2453.6,3.2078]
[1725032146561,0.41363795,2454.0,2453.7,0.40756]
[1725032146864,0.40753,2453.9,2453.7,0.40756]
[1725032147068,0.40757,2453.7,2453.5,0.40759]
[1725032147263,0.40757,2453.7,2453.4,0.00611795]
[1725032147264,0.40756,2453.7,2453.4,0.00611795]
[1725032147467,1.4266,2453.5,2453.4,0.00611795]
[1725032147772,0.4076,2453.5,2453.4,0.00611795]
[1725032147967,45.2836,2453.5,2453.4,0.00611795]
[1725032148166,0.40768,2453.1,2452.8,0.4077]
[1725032148361,0.40766,2453.2,2452.6,4.9562]
[1725032148665,0.40762,2453.4,2453.2,0.40764]
[1725032148968,4.48362,2453.4,2453.1,0.40765]
[1725032149168,40.8,2453.5,2453.1,0.40765]
[1725032149364,0.40762,2453.4,2453.1,0.40765]
[1725032149566,0.40763,2453.3,2453.1,0.40765]
[1725032149868,4.27957846,2453.4,2453.3,0.40763]
[1725032150068,0.40756,2453.8,2453.2,3.2078]
[1725032150269,1.7134,2453.9,2453.2,3.2078]
[1725032150270,1.7134,2453.9,2453.3,4.7]
[1725032150478,0.40755,2453.8,2453.3,4.7]
[1725032150661,2.12094,2453.9,2453.7,0.40756]
[1725032150861,0.40756,2453.7,2453.4,0.4076]
[1725032151163,0.40756,2453.7,2453.2,3.2078]
[1725032151164,1.7134,2453.9,2453.3,1.01908]
[1725032151369,1.7134,2453.9,2453.8,0.40755]
[1725032151572,0.00611795,2454.0,2453.9,0.40753]
[1725032151767,0.00611795,2454.0,2453.8,0.40753]
[1725032151975,0.00611795,2454.0,2453.9,0.40753]
[1725032152371,0.41362795,2454.0,2453.8,0.40754]
[1725032152571,0.00611795,2454.0,2453.9,0.40753]
[1725032152767,0.41363795,2454.0,2453.8,0.40754]
[1725032153259,0.40755,2453.8,2453.6,0.40757]
[1725032153465,0.00611795,2454.0,2453.6,0.40757]
[1725032153674,0.40756,2453.8,2453.6,0.40757]
[1725032153863,0.40756,2453.8,2453.0,0.00611795]
[1725032153864,1.0189,2453.8,2453.0,0.00611795]
[1725032154068,1.01896,2453.6,2453.1,0.40765]
[1725032154273,1.671,2453.5,2453.0,0.00611795]
[1725032154467,5.9398089,2453.5,2453.4,0.40761]
[1725032154667,5.9398089,2453.5,2453.3,0.40762]
[1725032154872,5.9398089,2453.5,2453.1,3.2078]
[1725032155072,5.9398089,2453.5,2453.3,0.40762]
[1725032155273,5.9398089,2453.5,2453.0,0.00611795]
[1725032155274,10.0158089,2453.5,2453.0,0.00611795]
[1725032155578,0.40766,2453.1,2453.0,0.00611795]
[1725032156076,15.02300295,2453.1,2453.0,0.00611795]
[1725032157566,4.53854295,2453.1,2453.0,0.41379795]
[1725032157767,0.40763,2453.3,2453.1,0.40766]
[1725032157974,0.40762,2453.4,2453.1,0.40766]
[1725032158275,4.27201627,2453.2,2453.1,0.40766]
[1725032158474,4.076,2453.3,2453.0,0.00611795]
[1725032158675,0.40766,2453.1,2453.0,0.00611795]
[1725032158876,0.40771,2452.9,2452.7,3.61553]
[1725032159070,0.4077,2452.9,2452.7,3.61552]
[1725032159275,4.4845,2452.9,2452.7,3.61552]
[1725032159571,1.01915,2453.2,2452.7,3.2078]
[1725032159875,5.01456844,2452.8,2452.7,3.2078]
[1725032160076,5.01456844,2452.8,2452.7,3.21391795]
[1725032160381,19.38365844,2452.8,2452.0,3.2078]
[1725032160691,0.40783,2452.1,2452.0,3.2078]
[1725032160866,7.9078,2452.6,2451.7,3.2078]
[1725032161066,0.40775,2452.6,2452.4,0.40778]
[1725032161267,42.5419,2452.7,2452.0,3.2078]
[1725032161467,0.40776,2452.6,2452.4,0.40778]
[1725032161670,42.95575795,2452.7,2452.5,0.40776]
[1725032161872,42.54801795,2452.7,2452.5,0.40775]
[1725032162074,6.23334795,2452.7,2452.5,0.40775]
[1725032162269,2.15574795,2452.7,2452.5,0.40775]
[1725032162469,0.00611795,2452.7,2452.6,0.40775]
[1725032162872,0.40775,2452.6,2452.4,0.40777]
[1725032163174,0.00611795,2452.7,2452.6,0.40775]
[1725032163367,10.7348,2453.4,2453.1,0.40765]
[1725032163565,4.7,2453.2,2452.4,0.40777]
[1725032163871,1.01909,2453.3,2452.3,0.00611795]
[1725032163872,0.40778,2452.4,2452.3,0.00611795]
[1725032164071,4.63504,2452.4,2452.3,0.00611795]
[1725032164373,0.40789,2451.8,2451.5,1.01756062]
[1725032164573,1.01954,2452.2,2451.6,0.4079]
[1725032164778,0.40787,2451.9,2451.2,8.24937062]
[1725032164978,4.67529464,2451.9,2451.6,0.4079]
[1725032165179,0.40789,2451.8,2451.5,0.00611795]
[1725032165481,0.00611795,2452.0,2451.5,0.00611795]
[1725032165672,0.40789,2451.8,2451.5,0.41402795]
[1725032165872,4.67529464,2451.9,2451.6,0.40791]
[1725032166084,0.40788,2451.8,2451.6,0.40791]
[1725032166271,4.26742464,2451.9,2451.5,0.00611795]
[1725032166591,0.40791,2451.6,2451.5,0.00611795]
[1725032166886,4.70279506,2451.7,2451.5,0.00611795]
[1725032166887,0.4079,2451.7,2451.5,0.00611795]
[1725032167090,3.4321,2451.8,2451.6,0.4079]
[1725032167381,4.41875912,2451.6,2451.5,0.00611795]
[1725032167566,8.49795912,2451.7,2451.5,0.00611795]
[1725032167770,4.0792,2451.6,2451.5,0.00611795]
[1725032167971,8.96676266,2451.6,2451.5,0.00611795]
[1725032168171,14.96676266,2451.6,2451.5,0.00611795]
[1725032168772,0.40799,2451.2,2450.8,3.2078]
[1725032168975,4.47965266,2451.6,2450.9,0.40802]
[1725032169168,4.46750256,2451.1,2450.9,0.40802]
[1725032169370,0.40793,2451.5,2450.9,0.40802]
[1725032169571,0.40791,2451.7,2451.0,0.40801]
[1725032169876,4.46750256,2451.4,2451.1,3.21391795]
[1725032170074,0.4079,2451.7,2451.1,3.21391795]
[1725032170382,4.28909516,2451.7,2451.1,3.21391795]
[1725032170572,0.00611795,2452.0,2451.2,3.61577]
[1725032170573,0.40789,2451.8,2451.2,3.61577]
[1725032170773,0.40794,2451.5,2451.1,0.00611795]
[1725032171083,4.32194908,2451.4,2451.1,0.00611795]
[1725032171279,4.32194908,2451.4,2451.1,0.41409795]
[1725032171480,3.61569,2451.8,2451.2,3.61578]
[1725032171683,3.61569,2451.8,2451.2,3.2078]
[1725032171684,0.40791,2451.7,2451.2,3.2078]
[1725032171978,4.32194908,2451.6,2451.2,3.2078]
[1725032172178,4.32194908,2451.7,2451.4,0.40794]
[1725032172381,0.40788,2451.9,2451.2,3.2078]
[1725032172578,0.40788,2451.8,2451.3,0.40796]
[1725032172777,5.13228202,2451.8,2451.3,0.40796]
[1725032172977,0.40788,2451.8,2451.3,0.40796]
[1725032173180,0.00611795,2452.0,2451.2,3.2078]
[1725032173489,4.26248504,2451.7,2451.3,0.40795]
[1725032173678,0.40792,2451.6,2451.2,3.2078]
[1725032173873,0.40795,2451.4,2451.1,0.00611795]
[1725032174183,4.62741592,2451.3,2451.1,0.00611795]
[1725032174384,0.40798,2451.2,2451.1,0.00611795]
[1725032174687,0.40797,2451.3,2451.1,0.00611795]
[1725032174875,0.40798,2451.2,2451.1,0.00611795]
[1725032175075,0.40797,2451.3,2451.1,0.00611795]
[1725032175286,1.6788,2451.5,2451.1,0.00611795]
[1725032175287,5.13840817,2451.4,2451.1,0.00611795]
[1725032175494,3.2078,2451.8,2451.2,3.2078]
[1725032175680,0.00611795,2452.0,2451.8,0.40787]
[1725032175876,0.41397795,2452.0,2451.5,3.2078]
[1725032176179,4.71385777,2451.9,2451.1,0.00611795]
[1725032176494,4.71385777,2451.9,2451.7,0.40788]
[1725032176689,4.71385777,2451.9,2451.3,3.2078]
[1725032176880,4.71385777,2451.9,2451.7,0.40789]
[1725032177186,4.71385777,2451.9,2451.6,0.4079]
[1725032177487,0.40788,2451.8,2451.4,0.40794]
[1725032177688,0.40791,2451.7,2451.3,0.40795]
[1725032177992,0.40791,2451.7,2451.2,3.2078]
[1725032177993,4.26012789,2451.7,2451.2,3.2078]
[1725032178199,4.26012789,2451.7,2451.1,0.00611795]
[1725032178200,0.40798,2451.2,2451.1,0.00611795]
[1725032178481,4.97503441,2451.2,2451.1,0.00611795]
[1725032178684,0.40805,2450.8,2450.6,1.8876]
[1725032178886,3.2078,2451.1,2450.3,3.2078]
[1725032179073,1.02012,2450.8,2450.2,1.9489]
[1725032179279,0.40809,2450.6,2450.2,0.40814]
[1725032179585,4.56705441,2450.5,2450.2,0.40814]
[1725032179889,4.56705441,2450.5,2450.3,0.40813]
[1725032180290,4.56705441,2450.5,2450.4,0.40811]
[1725032180490,0.00611795,2450.6,2450.2,3.61593]
[1725032180686,0.00611795,2450.6,2448.5,2.23381775]
[1725032180687,3.2078,2450.4,2449.7,2.35712]
[1725032180887,0.4082,2449.9,2449.7,1.9489]
[1725032181082,5.38629422,2450.3,2449.7,1.9489]
[1725032181287,0.40817,2450.1,2449.7,1.9489]
[1725032181791,4.36596422,2450.3,2449.8,3.2078]
[1725032181992,0.41420795,2450.6,2450.3,0.40812]
[1725032181993,0.00611795,2450.6,2450.3,0.40812]
[1725032182289,4.38487836,2450.5,2450.1,3.2078]
[1725032182481,0.40815,2450.2,2449.7,5.1567]
[1725032182681,3.2078,2450.3,2449.7,5.1567]
[1725032182988,4.38487836,2450.1,2450.0,0.40818]
[1725032183194,0.4081,2450.5,2450.0,3.2078]
[1725032183386,5.01968326,2450.5,2450.1,0.40816]
[1725032183689,5.01968326,2450.5,2450.0,3.2078]
[1725032183690,0.00611795,2450.6,2450.3,0.40813]
[1725032183891,0.00611795,2450.6,2450.1,1.9528]
[1725032184092,4.33166313,2450.5,2450.3,0.40812]
[1725032184294,4.33166313,2450.5,2450.1,1.9528]
[1725032184295,4.33166313,2450.5,2450.4,0.40811]
[1725032184481,4.33166313,2450.5,2450.1,1.9528]
[1725032184687,4.33166313,2450.5,2450.3,0.40812]
[1725032185310,4.33166313,2450.5,2450.4,0.40811]
[1725032185783,0.00611795,2450.6,2450.4,0.40811]
[1725032185985,0.00611795,2450.6,2450.1,1.9528]
[1725032185986,0.00611795,2450.6,2450.3,0.40812]
[1725032186292,4.4346064,2450.5,2450.3,0.40812]
[1725032186595,4.4346064,2450.5,2450.4,0.40811]
[1725032187389,4.4346064,2450.5,2450.3,0.40812]
[1725032187690,7.6424064,2450.5,2449.7,1.9489]
[1725032187889,7.6424064,2450.5,2450.0,0.40818]
[1725032188192,0.40817,2450.1,2449.8,0.40821]
[1725032188392,0.40821,2449.8,2449.5,0.40825]
[1725032188696,8.9282,2450.2,2449.3,0.40829]
[1725032188697,0.40826,2449.6,2449.3,0.40829]
[1725032188883,0.40825,2449.6,2449.3,0.40829]
[1725032189083,4.22833,2449.9,2449.1,2.0159]
[1725032189293,4.22833,2449.9,2449.3,0.40829]
[1725032189294,4.89856326,2449.5,2449.3,0.40829]
[1725032189494,0.40827,2449.5,2449.3,0.40829]
[1725032189794,0.40827,2449.5,2449.2,0.4083]
[1725032189992,0.40827,2449.5,2449.1,2.0159]
[1725032190294,3.61611,2449.3,2449.0,0.40834]
[1725032190489,3.2078,2449.3,2448.7,3.2078]
[1725032190795,0.40835,2449.0,2448.7,0.40839]
[1725032191094,12.25314289,2449.2,2448.5,1.8971]
[1725032191293,4.70722522,2448.9,2448.6,0.4084]
[1725032191490,4.29885522,2449.1,2449.0,0.40835]
[1725032191687,7.53311795,2449.2,2449.1,0.40833]
[1725032192195,7.53311795,2449.2,2449.1,4.49153]
[1725032192387,7.53311795,2449.2,2449.1,7.69933]
[1725032192992,7.53311795,2449.2,2449.1,8.72016]
[1725032193407,7.53311795,2449.2,2449.1,3.61613]
[1725032193787,7.53311795,2449.2,2449.1,0.40833]
[1725032194393,7.53311795,2449.2,2448.8,3.2078]
[1725032194593,7.53311795,2449.2,2449.1,0.40833]
[1725032195392,7.94143795,2449.2,2449.0,0.40834]
[1725032195591,0.40834,2449.1,2448.6,2.0277]
[1725032195894,0.40835,2449.0,2448.8,0.40837]
[1725032196291,7.53311795,2449.2,2448.6,2.0277]
[1725032196493,7.53311795,2449.2,2449.1,0.40833]
[1725032196691,7.53311795,2449.2,2448.6,2.0277]
[1725032196898,0.40837,2448.9,2448.7,0.40838]
[1725032197404,0.40837,2448.9,2448.7,0.4084]
[1725032198005,11.88312195,2449.2,2448.5,1.8971]
[1725032198297,0.40835,2449.0,2448.8,0.40837]
[1725032198695,4.60018223,2448.9,2448.8,0.40837]
[1725032198890,0.40834,2449.1,2449.0,0.40835]
[1725032199091,4.60025751,2449.1,2449.0,0.40835]
[1725032199292,7.94143795,2449.2,2449.0,0.40835]
[1725032199697,0.40835,2449.0,2448.7,3.2078]
[1725032199999,5.00859751,2449.1,2448.9,0.40835]
[1725032200296,0.40835,2449.0,2448.9,0.40835]
[1725032200498,8.68345751,2449.1,2448.9,0.40836]
[1725032200696,10.74091795,2449.2,2448.9,5.51247]
[1725032200697,4.26638039,2449.0,2448.9,5.51247]